{"text_format":"1","workbook":"xlsx","n_sheets":12,"sheets":["Instructions","Vibe Data","Node x1","Node x2","Node x3","Node x4","Node x5","Node x6","Node x7","Node x8","Node x9","Node x0"],"not_rendered":{"charts":60,"images":0,"macros":1,"external_links":0,"defined_names":181,"comments":0,"pivot_tables":0},"unopened":[],"bounds":{"document_bytes":16777216,"sheet_cells":100000,"rows_first":2000,"rows_last":500,"rows_between":2000,"halvings":0,"cell_chars":16384,"cell_head_chars":4096},"cells_cut":0,"cells_raw":0,"read":"whole","date_system":"1900"}

{"sheet":"Instructions","index":0,"n_rows":22,"n_cols":21,"rows_kept":22,"cut":false,"hidden":false,"merged":[[12,1,12,17],[10,1,11,19],[4,1,4,9],[1,1,2,6],[3,1,3,7],[7,1,8,12],[9,1,9,8]]}
[]
[null,"Vibration Solutions Kit Log Graphing Tool"]
[null,null,null,null,null,null,null,null,null,null,null,null,null,"RMS Velocity faults are indicative of looseness, misalignment, mounting issues, unbalance, and other low frequency issues."]
[null,"1) Download CSV Log Files from Vibration Solutions Kit v2.0 or newer",null,null,null,null,null,null,null,null,null,null,null,"RMS High Frequency Acceleration faults are indicative of early bearing faults, gear mesh faults and other high frequency issues."]
[null,"2) Enable Macros in this Workbook, click the Import button to select a CSV file ----->>>>>"]
[null,"3) All data from the log file will be copied into the 'Vibe Data' Sheet "]
[null,"4) Graphs will be generated for each Node in the log.  Example, if using Log file for Nodes 11-20, sheet \"Node x1\" would be for 11 and \"Node x0\" would be for 20."]
[null,"5) The vibration graphs have the raw data in black, baseline level in blue, warning level in yellow and alarm level in red. (NOTE: Values are not scaled to in/s or mm/s. To scale to in/s divide by 10,000. To scale to mm/s divide by 1,000.)"]
[]
[null,"6) The temperature graph only shows the raw temperature values"]
[null,"7) Vibration Alarm Mask graph is an indication of the bit packed alarm that is stored in that register.  Any value above zero is a warning or alarm.  Bit Packed breakout of alarms shown below.            (NOTE : On each Node page you may hover over the Vibration Alarm Mask graph line to get the value at different point then input the Alarm Mask Value in the INPUT VALUE area below the graph  to see a break down of the vibration mask by alarm type and bit)"]
[]
[null,"8) Return to Instruction Page and click import to select a new CSV log file.  All data from the previous file will be removed and only new data will be shown on the graphs."]
[]
[]
[null,"Bit - 0","Bit - 1","Bit - 2","Bit - 3","Bit - 4","Bit - 5","Bit - 6","Bit - 7","Bit - 8","Bit - 9","Bit - 10","Bit - 11","Bit - 12","Bit - 13","Bit - 14","Bit - 15","Bit - 16","Bit - 17","Bit - 18","Bit - 19"]
[null,"Acute X-Vel Warn","Acute X-Accel Warn","Acute Z-Vel Warn","Acute Z-Accel Warn","Acute X-Vel Alarm","Acute X-Accel Alarm","Acute Z-Vel Alarm","Acute Z-Accel Alarm","Chronic X-Vel Warn","Chronic X-Accel Warn","Chronic Z-Vel Warn","Chronic Z-Accel Warn","Chronic X-Vel Alarm","Chronic X-Accel Alarm","Chronic Z-Vel Alarm","Chronic Z-Accel Alarm","Temp Warning","Temp Alarm","Current Warning","Current Alarm"]
[null,0,0,0,0,0,0,0,0,0,0,0,0,0,0,0,0,0,0,0,0]
[]
[null,"Acute Alerts occur if the vibration data of a running asset exceeds the warning or alarm level for that vibration characteristic for 5 samples in row (by default but user adjustable on Settings Screen).  Indicates a short term, quickly occuring potential issue."]
[null,"Chronic Alerts occur if the 100 point moving average of running data exceeds the warning or alarm levels. Indicates a longer term or fatigue type failure."]
[null,"Baseline Data is taken only of an asset determined to be running for a period of 300 samples (by default but can be adjusted on the Settings screen)"]

{"sheet":"Vibe Data","index":1,"n_rows":0,"n_cols":0,"rows_kept":0,"cut":false,"hidden":false,"merged":[]}

{"sheet":"Node x1","index":2,"n_rows":66,"n_cols":49,"rows_kept":66,"cut":false,"hidden":false,"merged":[]}
[]
[]
[]
[]
[]
[]
[]
[]
[]
[]
[]
[]
[]
[]
[]
[]
[]
[]
[]
[]
[]
[]
[]
[]
[]
[]
[]
[]
[]
[]
[]
[]
[]
[]
[]
[]
[]
[]
[]
[]
[]
[]
[]
[]
[]
[]
[]
[]
[]
[]
[]
[]
[]
[]
[]
[]
[]
[]
[]
[]
[]
[]
[]
[]
[null,null,null,null,null,null,null,null,null,null,null,null,null,null,null,null,null,null,null,null,null,null,null,null,null,null,null,null,"<<--Vibration Mask Value Input","Acute X-Vel Warn","Acute X-Accel Warn","Acute Z-Vel Warn","Acute Z-Accel Warn","Acute X-Vel Alarm","Acute X-Accel Alarm","Acute Z-Vel Alarm","Acute Z-Accel Alarm","Chronic X-Vel Warn","Chronic X-Accel Warn","Chronic Z-Vel Warn","Chronic Z-Accel Warn","Chronic X-Vel Alarm","Chronic X-Accel Alarm","Chronic Z-Vel Alarm","Chronic Z-Accel Alarm","Temp Warning","Temp Alarm","Current Warning","Current Alarm"]
[null,null,null,null,null,null,null,null,null,null,null,null,null,null,null,null,null,null,null,null,null,null,null,null,null,null,null,null,null,{"$f":"IF(_xlfn.BITAND($AC$66,1)>=1, 1, 0)","v":0},{"$f":"IF(_xlfn.BITAND(ROUNDDOWN($AC$66/2,0),1)>=1, 1, 0)","v":0},{"$f":"IF(_xlfn.BITAND(ROUNDDOWN($AC$66/4,0),1)>=1, 1, 0)","v":0},{"$f":"IF(_xlfn.BITAND(ROUNDDOWN($AC$66/8,0),1)>=1, 1, 0)","v":0},{"$f":"IF(_xlfn.BITAND(ROUNDDOWN($AC$66/16,0),1)>=1, 1, 0)","v":0},{"$f":"IF(_xlfn.BITAND(ROUNDDOWN($AC$66/32,0),1)>=1, 1, 0)","v":0},{"$f":"IF(_xlfn.BITAND(ROUNDDOWN($AC$66/64,0),1)>=1, 1, 0)","v":0},{"$f":"IF(_xlfn.BITAND(ROUNDDOWN($AC$66/128,0),1)>=1, 1, 0)","v":0},{"$f":"IF(_xlfn.BITAND(ROUNDDOWN($AC$66/256,0),1)>=1, 1, 0)","v":0},{"$f":"IF(_xlfn.BITAND(ROUNDDOWN($AC$66/512,0),1)>=1, 1, 0)","v":0},{"$f":"IF(_xlfn.BITAND(ROUNDDOWN($AC$66/1024,0),1)>=1, 1, 0)","v":0},{"$f":"IF(_xlfn.BITAND(ROUNDDOWN($AC$66/2048,0),1)>=1, 1, 0)","v":0},{"$f":"IF(_xlfn.BITAND(ROUNDDOWN($AC$66/4096,0),1)>=1, 1, 0)","v":0},{"$f":"IF(_xlfn.BITAND(ROUNDDOWN($AC$66/8192,0),1)>=1, 1, 0)","v":0},{"$f":"IF(_xlfn.BITAND(ROUNDDOWN($AC$66/16384,0),1)>=1, 1, 0)","v":0},{"$f":"IF(_xlfn.BITAND(ROUNDDOWN($AC$66/32768,0),1)>=1, 1, 0)","v":0},{"$f":"IF(_xlfn.BITAND(ROUNDDOWN($AC$66/65536,0),1)>=1, 1, 0)","v":0},{"$f":"IF(_xlfn.BITAND(ROUNDDOWN($AC$66/131072,0),1)>=1, 1, 0)","v":0},{"$f":"IF(_xlfn.BITAND(ROUNDDOWN($AC$66/262144,0),1)>=1, 1, 0)","v":0},{"$f":"IF(_xlfn.BITAND(ROUNDDOWN($AC$66/524288,0),1)>=1, 1, 0)","v":0}]

{"sheet":"Node x2","index":3,"n_rows":66,"n_cols":49,"rows_kept":66,"cut":false,"hidden":false,"merged":[]}
[]
[]
[]
[]
[]
[]
[]
[]
[]
[]
[]
[]
[]
[]
[]
[]
[]
[]
[]
[]
[]
[]
[]
[]
[]
[]
[]
[]
[]
[]
[]
[]
[]
[]
[]
[]
[]
[]
[]
[]
[]
[]
[]
[]
[]
[]
[]
[]
[]
[]
[]
[]
[]
[]
[]
[]
[]
[]
[]
[]
[]
[]
[]
[]
[null,null,null,null,null,null,null,null,null,null,null,null,null,null,null,null,null,null,null,null,null,null,null,null,null,null,null,null,"<<--Vibration Mask Value Input","Acute X-Vel Warn","Acute X-Accel Warn","Acute Z-Vel Warn","Acute Z-Accel Warn","Acute X-Vel Alarm","Acute X-Accel Alarm","Acute Z-Vel Alarm","Acute Z-Accel Alarm","Chronic X-Vel Warn","Chronic X-Accel Warn","Chronic Z-Vel Warn","Chronic Z-Accel Warn","Chronic X-Vel Alarm","Chronic X-Accel Alarm","Chronic Z-Vel Alarm","Chronic Z-Accel Alarm","Temp Warning","Temp Alarm","Current Warning","Current Alarm"]
[null,null,null,null,null,null,null,null,null,null,null,null,null,null,null,null,null,null,null,null,null,null,null,null,null,null,null,null,0,{"$f":"IF(_xlfn.BITAND($AC$66,1)>=1, 1, 0)","v":0},{"$f":"IF(_xlfn.BITAND(ROUNDDOWN($AC$66/2,0),1)>=1, 1, 0)","v":0},{"$f":"IF(_xlfn.BITAND(ROUNDDOWN($AC$66/4,0),1)>=1, 1, 0)","v":0},{"$f":"IF(_xlfn.BITAND(ROUNDDOWN($AC$66/8,0),1)>=1, 1, 0)","v":0},{"$f":"IF(_xlfn.BITAND(ROUNDDOWN($AC$66/16,0),1)>=1, 1, 0)","v":0},{"$f":"IF(_xlfn.BITAND(ROUNDDOWN($AC$66/32,0),1)>=1, 1, 0)","v":0},{"$f":"IF(_xlfn.BITAND(ROUNDDOWN($AC$66/64,0),1)>=1, 1, 0)","v":0},{"$f":"IF(_xlfn.BITAND(ROUNDDOWN($AC$66/128,0),1)>=1, 1, 0)","v":0},{"$f":"IF(_xlfn.BITAND(ROUNDDOWN($AC$66/256,0),1)>=1, 1, 0)","v":0},{"$f":"IF(_xlfn.BITAND(ROUNDDOWN($AC$66/512,0),1)>=1, 1, 0)","v":0},{"$f":"IF(_xlfn.BITAND(ROUNDDOWN($AC$66/1024,0),1)>=1, 1, 0)","v":0},{"$f":"IF(_xlfn.BITAND(ROUNDDOWN($AC$66/2048,0),1)>=1, 1, 0)","v":0},{"$f":"IF(_xlfn.BITAND(ROUNDDOWN($AC$66/4096,0),1)>=1, 1, 0)","v":0},{"$f":"IF(_xlfn.BITAND(ROUNDDOWN($AC$66/8192,0),1)>=1, 1, 0)","v":0},{"$f":"IF(_xlfn.BITAND(ROUNDDOWN($AC$66/16384,0),1)>=1, 1, 0)","v":0},{"$f":"IF(_xlfn.BITAND(ROUNDDOWN($AC$66/32768,0),1)>=1, 1, 0)","v":0},{"$f":"IF(_xlfn.BITAND(ROUNDDOWN($AC$66/65536,0),1)>=1, 1, 0)","v":0},{"$f":"IF(_xlfn.BITAND(ROUNDDOWN($AC$66/131072,0),1)>=1, 1, 0)","v":0},{"$f":"IF(_xlfn.BITAND(ROUNDDOWN($AC$66/262144,0),1)>=1, 1, 0)","v":0},{"$f":"IF(_xlfn.BITAND(ROUNDDOWN($AC$66/524288,0),1)>=1, 1, 0)","v":0}]

{"sheet":"Node x3","index":4,"n_rows":66,"n_cols":49,"rows_kept":66,"cut":false,"hidden":false,"merged":[]}
[]
[]
[]
[]
[]
[]
[]
[]
[]
[]
[]
[]
[]
[]
[]
[]
[]
[]
[]
[]
[]
[]
[]
[]
[]
[]
[]
[]
[]
[]
[]
[]
[]
[]
[]
[]
[]
[]
[]
[]
[]
[]
[]
[]
[]
[]
[]
[]
[]
[]
[]
[]
[]
[]
[]
[]
[]
[]
[]
[]
[]
[]
[]
[]
[null,null,null,null,null,null,null,null,null,null,null,null,null,null,null,null,null,null,null,null,null,null,null,null,null,null,null,null,"<<--Vibration Mask Value Input","Acute X-Vel Warn","Acute X-Accel Warn","Acute Z-Vel Warn","Acute Z-Accel Warn","Acute X-Vel Alarm","Acute X-Accel Alarm","Acute Z-Vel Alarm","Acute Z-Accel Alarm","Chronic X-Vel Warn","Chronic X-Accel Warn","Chronic Z-Vel Warn","Chronic Z-Accel Warn","Chronic X-Vel Alarm","Chronic X-Accel Alarm","Chronic Z-Vel Alarm","Chronic Z-Accel Alarm","Temp Warning","Temp Alarm","Current Warning","Current Alarm"]
[null,null,null,null,null,null,null,null,null,null,null,null,null,null,null,null,null,null,null,null,null,null,null,null,null,null,null,null,0,{"$f":"IF(_xlfn.BITAND($AC$66,1)>=1, 1, 0)","v":0},{"$f":"IF(_xlfn.BITAND(ROUNDDOWN($AC$66/2,0),1)>=1, 1, 0)","v":0},{"$f":"IF(_xlfn.BITAND(ROUNDDOWN($AC$66/4,0),1)>=1, 1, 0)","v":0},{"$f":"IF(_xlfn.BITAND(ROUNDDOWN($AC$66/8,0),1)>=1, 1, 0)","v":0},{"$f":"IF(_xlfn.BITAND(ROUNDDOWN($AC$66/16,0),1)>=1, 1, 0)","v":0},{"$f":"IF(_xlfn.BITAND(ROUNDDOWN($AC$66/32,0),1)>=1, 1, 0)","v":0},{"$f":"IF(_xlfn.BITAND(ROUNDDOWN($AC$66/64,0),1)>=1, 1, 0)","v":0},{"$f":"IF(_xlfn.BITAND(ROUNDDOWN($AC$66/128,0),1)>=1, 1, 0)","v":0},{"$f":"IF(_xlfn.BITAND(ROUNDDOWN($AC$66/256,0),1)>=1, 1, 0)","v":0},{"$f":"IF(_xlfn.BITAND(ROUNDDOWN($AC$66/512,0),1)>=1, 1, 0)","v":0},{"$f":"IF(_xlfn.BITAND(ROUNDDOWN($AC$66/1024,0),1)>=1, 1, 0)","v":0},{"$f":"IF(_xlfn.BITAND(ROUNDDOWN($AC$66/2048,0),1)>=1, 1, 0)","v":0},{"$f":"IF(_xlfn.BITAND(ROUNDDOWN($AC$66/4096,0),1)>=1, 1, 0)","v":0},{"$f":"IF(_xlfn.BITAND(ROUNDDOWN($AC$66/8192,0),1)>=1, 1, 0)","v":0},{"$f":"IF(_xlfn.BITAND(ROUNDDOWN($AC$66/16384,0),1)>=1, 1, 0)","v":0},{"$f":"IF(_xlfn.BITAND(ROUNDDOWN($AC$66/32768,0),1)>=1, 1, 0)","v":0},{"$f":"IF(_xlfn.BITAND(ROUNDDOWN($AC$66/65536,0),1)>=1, 1, 0)","v":0},{"$f":"IF(_xlfn.BITAND(ROUNDDOWN($AC$66/131072,0),1)>=1, 1, 0)","v":0},{"$f":"IF(_xlfn.BITAND(ROUNDDOWN($AC$66/262144,0),1)>=1, 1, 0)","v":0},{"$f":"IF(_xlfn.BITAND(ROUNDDOWN($AC$66/524288,0),1)>=1, 1, 0)","v":0}]

{"sheet":"Node x4","index":5,"n_rows":66,"n_cols":49,"rows_kept":66,"cut":false,"hidden":false,"merged":[]}
[]
[]
[]
[]
[]
[]
[]
[]
[]
[]
[]
[]
[]
[]
[]
[]
[]
[]
[]
[]
[]
[]
[]
[]
[]
[]
[]
[]
[]
[]
[]
[]
[]
[]
[]
[]
[]
[]
[]
[]
[]
[]
[]
[]
[]
[]
[]
[]
[]
[]
[]
[]
[]
[]
[]
[]
[]
[]
[]
[]
[]
[]
[]
[]
[null,null,null,null,null,null,null,null,null,null,null,null,null,null,null,null,null,null,null,null,null,null,null,null,null,null,null,null,"<<--Vibration Mask Value Input","Acute X-Vel Warn","Acute X-Accel Warn","Acute Z-Vel Warn","Acute Z-Accel Warn","Acute X-Vel Alarm","Acute X-Accel Alarm","Acute Z-Vel Alarm","Acute Z-Accel Alarm","Chronic X-Vel Warn","Chronic X-Accel Warn","Chronic Z-Vel Warn","Chronic Z-Accel Warn","Chronic X-Vel Alarm","Chronic X-Accel Alarm","Chronic Z-Vel Alarm","Chronic Z-Accel Alarm","Temp Warning","Temp Alarm","Current Warning","Current Alarm"]
[null,null,null,null,null,null,null,null,null,null,null,null,null,null,null,null,null,null,null,null,null,null,null,null,null,null,null,null,0,{"$f":"IF(_xlfn.BITAND($AC$66,1)>=1, 1, 0)","v":0},{"$f":"IF(_xlfn.BITAND(ROUNDDOWN($AC$66/2,0),1)>=1, 1, 0)","v":0},{"$f":"IF(_xlfn.BITAND(ROUNDDOWN($AC$66/4,0),1)>=1, 1, 0)","v":0},{"$f":"IF(_xlfn.BITAND(ROUNDDOWN($AC$66/8,0),1)>=1, 1, 0)","v":0},{"$f":"IF(_xlfn.BITAND(ROUNDDOWN($AC$66/16,0),1)>=1, 1, 0)","v":0},{"$f":"IF(_xlfn.BITAND(ROUNDDOWN($AC$66/32,0),1)>=1, 1, 0)","v":0},{"$f":"IF(_xlfn.BITAND(ROUNDDOWN($AC$66/64,0),1)>=1, 1, 0)","v":0},{"$f":"IF(_xlfn.BITAND(ROUNDDOWN($AC$66/128,0),1)>=1, 1, 0)","v":0},{"$f":"IF(_xlfn.BITAND(ROUNDDOWN($AC$66/256,0),1)>=1, 1, 0)","v":0},{"$f":"IF(_xlfn.BITAND(ROUNDDOWN($AC$66/512,0),1)>=1, 1, 0)","v":0},{"$f":"IF(_xlfn.BITAND(ROUNDDOWN($AC$66/1024,0),1)>=1, 1, 0)","v":0},{"$f":"IF(_xlfn.BITAND(ROUNDDOWN($AC$66/2048,0),1)>=1, 1, 0)","v":0},{"$f":"IF(_xlfn.BITAND(ROUNDDOWN($AC$66/4096,0),1)>=1, 1, 0)","v":0},{"$f":"IF(_xlfn.BITAND(ROUNDDOWN($AC$66/8192,0),1)>=1, 1, 0)","v":0},{"$f":"IF(_xlfn.BITAND(ROUNDDOWN($AC$66/16384,0),1)>=1, 1, 0)","v":0},{"$f":"IF(_xlfn.BITAND(ROUNDDOWN($AC$66/32768,0),1)>=1, 1, 0)","v":0},{"$f":"IF(_xlfn.BITAND(ROUNDDOWN($AC$66/65536,0),1)>=1, 1, 0)","v":0},{"$f":"IF(_xlfn.BITAND(ROUNDDOWN($AC$66/131072,0),1)>=1, 1, 0)","v":0},{"$f":"IF(_xlfn.BITAND(ROUNDDOWN($AC$66/262144,0),1)>=1, 1, 0)","v":0},{"$f":"IF(_xlfn.BITAND(ROUNDDOWN($AC$66/524288,0),1)>=1, 1, 0)","v":0}]

{"sheet":"Node x5","index":6,"n_rows":66,"n_cols":49,"rows_kept":66,"cut":false,"hidden":false,"merged":[]}
[]
[]
[]
[]
[]
[]
[]
[]
[]
[]
[]
[]
[]
[]
[]
[]
[]
[]
[]
[]
[]
[]
[]
[]
[]
[]
[]
[]
[]
[]
[]
[]
[]
[]
[]
[]
[]
[]
[]
[]
[]
[]
[]
[]
[]
[]
[]
[]
[]
[]
[]
[]
[]
[]
[]
[]
[]
[]
[]
[]
[]
[]
[]
[]
[null,null,null,null,null,null,null,null,null,null,null,null,null,null,null,null,null,null,null,null,null,null,null,null,null,null,null,null,"<<--Vibration Mask Value Input","Acute X-Vel Warn","Acute X-Accel Warn","Acute Z-Vel Warn","Acute Z-Accel Warn","Acute X-Vel Alarm","Acute X-Accel Alarm","Acute Z-Vel Alarm","Acute Z-Accel Alarm","Chronic X-Vel Warn","Chronic X-Accel Warn","Chronic Z-Vel Warn","Chronic Z-Accel Warn","Chronic X-Vel Alarm","Chronic X-Accel Alarm","Chronic Z-Vel Alarm","Chronic Z-Accel Alarm","Temp Warning","Temp Alarm","Current Warning","Current Alarm"]
[null,null,null,null,null,null,null,null,null,null,null,null,null,null,null,null,null,null,null,null,null,null,null,null,null,null,null,null,0,{"$f":"IF(_xlfn.BITAND($AC$66,1)>=1, 1, 0)","v":0},{"$f":"IF(_xlfn.BITAND(ROUNDDOWN($AC$66/2,0),1)>=1, 1, 0)","v":0},{"$f":"IF(_xlfn.BITAND(ROUNDDOWN($AC$66/4,0),1)>=1, 1, 0)","v":0},{"$f":"IF(_xlfn.BITAND(ROUNDDOWN($AC$66/8,0),1)>=1, 1, 0)","v":0},{"$f":"IF(_xlfn.BITAND(ROUNDDOWN($AC$66/16,0),1)>=1, 1, 0)","v":0},{"$f":"IF(_xlfn.BITAND(ROUNDDOWN($AC$66/32,0),1)>=1, 1, 0)","v":0},{"$f":"IF(_xlfn.BITAND(ROUNDDOWN($AC$66/64,0),1)>=1, 1, 0)","v":0},{"$f":"IF(_xlfn.BITAND(ROUNDDOWN($AC$66/128,0),1)>=1, 1, 0)","v":0},{"$f":"IF(_xlfn.BITAND(ROUNDDOWN($AC$66/256,0),1)>=1, 1, 0)","v":0},{"$f":"IF(_xlfn.BITAND(ROUNDDOWN($AC$66/512,0),1)>=1, 1, 0)","v":0},{"$f":"IF(_xlfn.BITAND(ROUNDDOWN($AC$66/1024,0),1)>=1, 1, 0)","v":0},{"$f":"IF(_xlfn.BITAND(ROUNDDOWN($AC$66/2048,0),1)>=1, 1, 0)","v":0},{"$f":"IF(_xlfn.BITAND(ROUNDDOWN($AC$66/4096,0),1)>=1, 1, 0)","v":0},{"$f":"IF(_xlfn.BITAND(ROUNDDOWN($AC$66/8192,0),1)>=1, 1, 0)","v":0},{"$f":"IF(_xlfn.BITAND(ROUNDDOWN($AC$66/16384,0),1)>=1, 1, 0)","v":0},{"$f":"IF(_xlfn.BITAND(ROUNDDOWN($AC$66/32768,0),1)>=1, 1, 0)","v":0},{"$f":"IF(_xlfn.BITAND(ROUNDDOWN($AC$66/65536,0),1)>=1, 1, 0)","v":0},{"$f":"IF(_xlfn.BITAND(ROUNDDOWN($AC$66/131072,0),1)>=1, 1, 0)","v":0},{"$f":"IF(_xlfn.BITAND(ROUNDDOWN($AC$66/262144,0),1)>=1, 1, 0)","v":0},{"$f":"IF(_xlfn.BITAND(ROUNDDOWN($AC$66/524288,0),1)>=1, 1, 0)","v":0}]

{"sheet":"Node x6","index":7,"n_rows":66,"n_cols":49,"rows_kept":66,"cut":false,"hidden":false,"merged":[]}
[]
[]
[]
[]
[]
[]
[]
[]
[]
[]
[]
[]
[]
[]
[]
[]
[]
[]
[]
[]
[]
[]
[]
[]
[]
[]
[]
[]
[]
[]
[]
[]
[]
[]
[]
[]
[]
[]
[]
[]
[]
[]
[]
[]
[]
[]
[]
[]
[]
[]
[]
[]
[]
[]
[]
[]
[]
[]
[]
[]
[]
[]
[]
[]
[null,null,null,null,null,null,null,null,null,null,null,null,null,null,null,null,null,null,null,null,null,null,null,null,null,null,null,null,"<<--Vibration Mask Value Input","Acute X-Vel Warn","Acute X-Accel Warn","Acute Z-Vel Warn","Acute Z-Accel Warn","Acute X-Vel Alarm","Acute X-Accel Alarm","Acute Z-Vel Alarm","Acute Z-Accel Alarm","Chronic X-Vel Warn","Chronic X-Accel Warn","Chronic Z-Vel Warn","Chronic Z-Accel Warn","Chronic X-Vel Alarm","Chronic X-Accel Alarm","Chronic Z-Vel Alarm","Chronic Z-Accel Alarm","Temp Warning","Temp Alarm","Current Warning","Current Alarm"]
[null,null,null,null,null,null,null,null,null,null,null,null,null,null,null,null,null,null,null,null,null,null,null,null,null,null,null,null,0,{"$f":"IF(_xlfn.BITAND($AC$66,1)>=1, 1, 0)","v":0},{"$f":"IF(_xlfn.BITAND(ROUNDDOWN($AC$66/2,0),1)>=1, 1, 0)","v":0},{"$f":"IF(_xlfn.BITAND(ROUNDDOWN($AC$66/4,0),1)>=1, 1, 0)","v":0},{"$f":"IF(_xlfn.BITAND(ROUNDDOWN($AC$66/8,0),1)>=1, 1, 0)","v":0},{"$f":"IF(_xlfn.BITAND(ROUNDDOWN($AC$66/16,0),1)>=1, 1, 0)","v":0},{"$f":"IF(_xlfn.BITAND(ROUNDDOWN($AC$66/32,0),1)>=1, 1, 0)","v":0},{"$f":"IF(_xlfn.BITAND(ROUNDDOWN($AC$66/64,0),1)>=1, 1, 0)","v":0},{"$f":"IF(_xlfn.BITAND(ROUNDDOWN($AC$66/128,0),1)>=1, 1, 0)","v":0},{"$f":"IF(_xlfn.BITAND(ROUNDDOWN($AC$66/256,0),1)>=1, 1, 0)","v":0},{"$f":"IF(_xlfn.BITAND(ROUNDDOWN($AC$66/512,0),1)>=1, 1, 0)","v":0},{"$f":"IF(_xlfn.BITAND(ROUNDDOWN($AC$66/1024,0),1)>=1, 1, 0)","v":0},{"$f":"IF(_xlfn.BITAND(ROUNDDOWN($AC$66/2048,0),1)>=1, 1, 0)","v":0},{"$f":"IF(_xlfn.BITAND(ROUNDDOWN($AC$66/4096,0),1)>=1, 1, 0)","v":0},{"$f":"IF(_xlfn.BITAND(ROUNDDOWN($AC$66/8192,0),1)>=1, 1, 0)","v":0},{"$f":"IF(_xlfn.BITAND(ROUNDDOWN($AC$66/16384,0),1)>=1, 1, 0)","v":0},{"$f":"IF(_xlfn.BITAND(ROUNDDOWN($AC$66/32768,0),1)>=1, 1, 0)","v":0},{"$f":"IF(_xlfn.BITAND(ROUNDDOWN($AC$66/65536,0),1)>=1, 1, 0)","v":0},{"$f":"IF(_xlfn.BITAND(ROUNDDOWN($AC$66/131072,0),1)>=1, 1, 0)","v":0},{"$f":"IF(_xlfn.BITAND(ROUNDDOWN($AC$66/262144,0),1)>=1, 1, 0)","v":0},{"$f":"IF(_xlfn.BITAND(ROUNDDOWN($AC$66/524288,0),1)>=1, 1, 0)","v":0}]

{"sheet":"Node x7","index":8,"n_rows":66,"n_cols":49,"rows_kept":66,"cut":false,"hidden":false,"merged":[]}
[]
[]
[]
[]
[]
[]
[]
[]
[]
[]
[]
[]
[]
[]
[]
[]
[]
[]
[]
[]
[]
[]
[]
[]
[]
[]
[]
[]
[]
[]
[]
[]
[]
[]
[]
[]
[]
[]
[]
[]
[]
[]
[]
[]
[]
[]
[]
[]
[]
[]
[]
[]
[]
[]
[]
[]
[]
[]
[]
[]
[]
[]
[]
[]
[null,null,null,null,null,null,null,null,null,null,null,null,null,null,null,null,null,null,null,null,null,null,null,null,null,null,null,null,"<<--Vibration Mask Value Input","Acute X-Vel Warn","Acute X-Accel Warn","Acute Z-Vel Warn","Acute Z-Accel Warn","Acute X-Vel Alarm","Acute X-Accel Alarm","Acute Z-Vel Alarm","Acute Z-Accel Alarm","Chronic X-Vel Warn","Chronic X-Accel Warn","Chronic Z-Vel Warn","Chronic Z-Accel Warn","Chronic X-Vel Alarm","Chronic X-Accel Alarm","Chronic Z-Vel Alarm","Chronic Z-Accel Alarm","Temp Warning","Temp Alarm","Current Warning","Current Alarm"]
[null,null,null,null,null,null,null,null,null,null,null,null,null,null,null,null,null,null,null,null,null,null,null,null,null,null,null,null,0,{"$f":"IF(_xlfn.BITAND($AC$66,1)>=1, 1, 0)","v":0},{"$f":"IF(_xlfn.BITAND(ROUNDDOWN($AC$66/2,0),1)>=1, 1, 0)","v":0},{"$f":"IF(_xlfn.BITAND(ROUNDDOWN($AC$66/4,0),1)>=1, 1, 0)","v":0},{"$f":"IF(_xlfn.BITAND(ROUNDDOWN($AC$66/8,0),1)>=1, 1, 0)","v":0},{"$f":"IF(_xlfn.BITAND(ROUNDDOWN($AC$66/16,0),1)>=1, 1, 0)","v":0},{"$f":"IF(_xlfn.BITAND(ROUNDDOWN($AC$66/32,0),1)>=1, 1, 0)","v":0},{"$f":"IF(_xlfn.BITAND(ROUNDDOWN($AC$66/64,0),1)>=1, 1, 0)","v":0},{"$f":"IF(_xlfn.BITAND(ROUNDDOWN($AC$66/128,0),1)>=1, 1, 0)","v":0},{"$f":"IF(_xlfn.BITAND(ROUNDDOWN($AC$66/256,0),1)>=1, 1, 0)","v":0},{"$f":"IF(_xlfn.BITAND(ROUNDDOWN($AC$66/512,0),1)>=1, 1, 0)","v":0},{"$f":"IF(_xlfn.BITAND(ROUNDDOWN($AC$66/1024,0),1)>=1, 1, 0)","v":0},{"$f":"IF(_xlfn.BITAND(ROUNDDOWN($AC$66/2048,0),1)>=1, 1, 0)","v":0},{"$f":"IF(_xlfn.BITAND(ROUNDDOWN($AC$66/4096,0),1)>=1, 1, 0)","v":0},{"$f":"IF(_xlfn.BITAND(ROUNDDOWN($AC$66/8192,0),1)>=1, 1, 0)","v":0},{"$f":"IF(_xlfn.BITAND(ROUNDDOWN($AC$66/16384,0),1)>=1, 1, 0)","v":0},{"$f":"IF(_xlfn.BITAND(ROUNDDOWN($AC$66/32768,0),1)>=1, 1, 0)","v":0},{"$f":"IF(_xlfn.BITAND(ROUNDDOWN($AC$66/65536,0),1)>=1, 1, 0)","v":0},{"$f":"IF(_xlfn.BITAND(ROUNDDOWN($AC$66/131072,0),1)>=1, 1, 0)","v":0},{"$f":"IF(_xlfn.BITAND(ROUNDDOWN($AC$66/262144,0),1)>=1, 1, 0)","v":0},{"$f":"IF(_xlfn.BITAND(ROUNDDOWN($AC$66/524288,0),1)>=1, 1, 0)","v":0}]

{"sheet":"Node x8","index":9,"n_rows":66,"n_cols":49,"rows_kept":66,"cut":false,"hidden":false,"merged":[]}
[]
[]
[]
[]
[]
[]
[]
[]
[]
[]
[]
[]
[]
[]
[]
[]
[]
[]
[]
[]
[]
[]
[]
[]
[]
[]
[]
[]
[]
[]
[]
[]
[]
[]
[]
[]
[]
[]
[]
[]
[]
[]
[]
[]
[]
[]
[]
[]
[]
[]
[]
[]
[]
[]
[]
[]
[]
[]
[]
[]
[]
[]
[]
[]
[null,null,null,null,null,null,null,null,null,null,null,null,null,null,null,null,null,null,null,null,null,null,null,null,null,null,null,null,"<<--Vibration Mask Value Input","Acute X-Vel Warn","Acute X-Accel Warn","Acute Z-Vel Warn","Acute Z-Accel Warn","Acute X-Vel Alarm","Acute X-Accel Alarm","Acute Z-Vel Alarm","Acute Z-Accel Alarm","Chronic X-Vel Warn","Chronic X-Accel Warn","Chronic Z-Vel Warn","Chronic Z-Accel Warn","Chronic X-Vel Alarm","Chronic X-Accel Alarm","Chronic Z-Vel Alarm","Chronic Z-Accel Alarm","Temp Warning","Temp Alarm","Current Warning","Current Alarm"]
[null,null,null,null,null,null,null,null,null,null,null,null,null,null,null,null,null,null,null,null,null,null,null,null,null,null,null,null,0,{"$f":"IF(_xlfn.BITAND($AC$66,1)>=1, 1, 0)","v":0},{"$f":"IF(_xlfn.BITAND(ROUNDDOWN($AC$66/2,0),1)>=1, 1, 0)","v":0},{"$f":"IF(_xlfn.BITAND(ROUNDDOWN($AC$66/4,0),1)>=1, 1, 0)","v":0},{"$f":"IF(_xlfn.BITAND(ROUNDDOWN($AC$66/8,0),1)>=1, 1, 0)","v":0},{"$f":"IF(_xlfn.BITAND(ROUNDDOWN($AC$66/16,0),1)>=1, 1, 0)","v":0},{"$f":"IF(_xlfn.BITAND(ROUNDDOWN($AC$66/32,0),1)>=1, 1, 0)","v":0},{"$f":"IF(_xlfn.BITAND(ROUNDDOWN($AC$66/64,0),1)>=1, 1, 0)","v":0},{"$f":"IF(_xlfn.BITAND(ROUNDDOWN($AC$66/128,0),1)>=1, 1, 0)","v":0},{"$f":"IF(_xlfn.BITAND(ROUNDDOWN($AC$66/256,0),1)>=1, 1, 0)","v":0},{"$f":"IF(_xlfn.BITAND(ROUNDDOWN($AC$66/512,0),1)>=1, 1, 0)","v":0},{"$f":"IF(_xlfn.BITAND(ROUNDDOWN($AC$66/1024,0),1)>=1, 1, 0)","v":0},{"$f":"IF(_xlfn.BITAND(ROUNDDOWN($AC$66/2048,0),1)>=1, 1, 0)","v":0},{"$f":"IF(_xlfn.BITAND(ROUNDDOWN($AC$66/4096,0),1)>=1, 1, 0)","v":0},{"$f":"IF(_xlfn.BITAND(ROUNDDOWN($AC$66/8192,0),1)>=1, 1, 0)","v":0},{"$f":"IF(_xlfn.BITAND(ROUNDDOWN($AC$66/16384,0),1)>=1, 1, 0)","v":0},{"$f":"IF(_xlfn.BITAND(ROUNDDOWN($AC$66/32768,0),1)>=1, 1, 0)","v":0},{"$f":"IF(_xlfn.BITAND(ROUNDDOWN($AC$66/65536,0),1)>=1, 1, 0)","v":0},{"$f":"IF(_xlfn.BITAND(ROUNDDOWN($AC$66/131072,0),1)>=1, 1, 0)","v":0},{"$f":"IF(_xlfn.BITAND(ROUNDDOWN($AC$66/262144,0),1)>=1, 1, 0)","v":0},{"$f":"IF(_xlfn.BITAND(ROUNDDOWN($AC$66/524288,0),1)>=1, 1, 0)","v":0}]

{"sheet":"Node x9","index":10,"n_rows":66,"n_cols":49,"rows_kept":66,"cut":false,"hidden":false,"merged":[]}
[]
[]
[]
[]
[]
[]
[]
[]
[]
[]
[]
[]
[]
[]
[]
[]
[]
[]
[]
[]
[]
[]
[]
[]
[]
[]
[]
[]
[]
[]
[]
[]
[]
[]
[]
[]
[]
[]
[]
[]
[]
[]
[]
[]
[]
[]
[]
[]
[]
[]
[]
[]
[]
[]
[]
[]
[]
[]
[]
[]
[]
[]
[]
[]
[null,null,null,null,null,null,null,null,null,null,null,null,null,null,null,null,null,null,null,null,null,null,null,null,null,null,null,null,"<<--Vibration Mask Value Input","Acute X-Vel Warn","Acute X-Accel Warn","Acute Z-Vel Warn","Acute Z-Accel Warn","Acute X-Vel Alarm","Acute X-Accel Alarm","Acute Z-Vel Alarm","Acute Z-Accel Alarm","Chronic X-Vel Warn","Chronic X-Accel Warn","Chronic Z-Vel Warn","Chronic Z-Accel Warn","Chronic X-Vel Alarm","Chronic X-Accel Alarm","Chronic Z-Vel Alarm","Chronic Z-Accel Alarm","Temp Warning","Temp Alarm","Current Warning","Current Alarm"]
[null,null,null,null,null,null,null,null,null,null,null,null,null,null,null,null,null,null,null,null,null,null,null,null,null,null,null,null,0,{"$f":"IF(_xlfn.BITAND($AC$66,1)>=1, 1, 0)","v":0},{"$f":"IF(_xlfn.BITAND(ROUNDDOWN($AC$66/2,0),1)>=1, 1, 0)","v":0},{"$f":"IF(_xlfn.BITAND(ROUNDDOWN($AC$66/4,0),1)>=1, 1, 0)","v":0},{"$f":"IF(_xlfn.BITAND(ROUNDDOWN($AC$66/8,0),1)>=1, 1, 0)","v":0},{"$f":"IF(_xlfn.BITAND(ROUNDDOWN($AC$66/16,0),1)>=1, 1, 0)","v":0},{"$f":"IF(_xlfn.BITAND(ROUNDDOWN($AC$66/32,0),1)>=1, 1, 0)","v":0},{"$f":"IF(_xlfn.BITAND(ROUNDDOWN($AC$66/64,0),1)>=1, 1, 0)","v":0},{"$f":"IF(_xlfn.BITAND(ROUNDDOWN($AC$66/128,0),1)>=1, 1, 0)","v":0},{"$f":"IF(_xlfn.BITAND(ROUNDDOWN($AC$66/256,0),1)>=1, 1, 0)","v":0},{"$f":"IF(_xlfn.BITAND(ROUNDDOWN($AC$66/512,0),1)>=1, 1, 0)","v":0},{"$f":"IF(_xlfn.BITAND(ROUNDDOWN($AC$66/1024,0),1)>=1, 1, 0)","v":0},{"$f":"IF(_xlfn.BITAND(ROUNDDOWN($AC$66/2048,0),1)>=1, 1, 0)","v":0},{"$f":"IF(_xlfn.BITAND(ROUNDDOWN($AC$66/4096,0),1)>=1, 1, 0)","v":0},{"$f":"IF(_xlfn.BITAND(ROUNDDOWN($AC$66/8192,0),1)>=1, 1, 0)","v":0},{"$f":"IF(_xlfn.BITAND(ROUNDDOWN($AC$66/16384,0),1)>=1, 1, 0)","v":0},{"$f":"IF(_xlfn.BITAND(ROUNDDOWN($AC$66/32768,0),1)>=1, 1, 0)","v":0},{"$f":"IF(_xlfn.BITAND(ROUNDDOWN($AC$66/65536,0),1)>=1, 1, 0)","v":0},{"$f":"IF(_xlfn.BITAND(ROUNDDOWN($AC$66/131072,0),1)>=1, 1, 0)","v":0},{"$f":"IF(_xlfn.BITAND(ROUNDDOWN($AC$66/262144,0),1)>=1, 1, 0)","v":0},{"$f":"IF(_xlfn.BITAND(ROUNDDOWN($AC$66/524288,0),1)>=1, 1, 0)","v":0}]

{"sheet":"Node x0","index":11,"n_rows":66,"n_cols":49,"rows_kept":66,"cut":false,"hidden":false,"merged":[]}
[]
[]
[]
[]
[]
[]
[]
[]
[]
[]
[]
[]
[]
[]
[]
[]
[]
[]
[]
[]
[]
[]
[]
[]
[]
[]
[]
[]
[]
[]
[]
[]
[]
[]
[]
[]
[]
[]
[]
[]
[]
[]
[]
[]
[]
[]
[]
[]
[]
[]
[]
[]
[]
[]
[]
[]
[]
[]
[]
[]
[]
[]
[]
[]
[null,null,null,null,null,null,null,null,null,null,null,null,null,null,null,null,null,null,null,null,null,null,null,null,null,null,null,null,"<<--Vibration Mask Value Input","Acute X-Vel Warn","Acute X-Accel Warn","Acute Z-Vel Warn","Acute Z-Accel Warn","Acute X-Vel Alarm","Acute X-Accel Alarm","Acute Z-Vel Alarm","Acute Z-Accel Alarm","Chronic X-Vel Warn","Chronic X-Accel Warn","Chronic Z-Vel Warn","Chronic Z-Accel Warn","Chronic X-Vel Alarm","Chronic X-Accel Alarm","Chronic Z-Vel Alarm","Chronic Z-Accel Alarm","Temp Warning","Temp Alarm","Current Warning","Current Alarm"]
[null,null,null,null,null,null,null,null,null,null,null,null,null,null,null,null,null,null,null,null,null,null,null,null,null,null,null,null,0,{"$f":"IF(_xlfn.BITAND($AC$66,1)>=1, 1, 0)","v":0},{"$f":"IF(_xlfn.BITAND(ROUNDDOWN($AC$66/2,0),1)>=1, 1, 0)","v":0},{"$f":"IF(_xlfn.BITAND(ROUNDDOWN($AC$66/4,0),1)>=1, 1, 0)","v":0},{"$f":"IF(_xlfn.BITAND(ROUNDDOWN($AC$66/8,0),1)>=1, 1, 0)","v":0},{"$f":"IF(_xlfn.BITAND(ROUNDDOWN($AC$66/16,0),1)>=1, 1, 0)","v":0},{"$f":"IF(_xlfn.BITAND(ROUNDDOWN($AC$66/32,0),1)>=1, 1, 0)","v":0},{"$f":"IF(_xlfn.BITAND(ROUNDDOWN($AC$66/64,0),1)>=1, 1, 0)","v":0},{"$f":"IF(_xlfn.BITAND(ROUNDDOWN($AC$66/128,0),1)>=1, 1, 0)","v":0},{"$f":"IF(_xlfn.BITAND(ROUNDDOWN($AC$66/256,0),1)>=1, 1, 0)","v":0},{"$f":"IF(_xlfn.BITAND(ROUNDDOWN($AC$66/512,0),1)>=1, 1, 0)","v":0},{"$f":"IF(_xlfn.BITAND(ROUNDDOWN($AC$66/1024,0),1)>=1, 1, 0)","v":0},{"$f":"IF(_xlfn.BITAND(ROUNDDOWN($AC$66/2048,0),1)>=1, 1, 0)","v":0},{"$f":"IF(_xlfn.BITAND(ROUNDDOWN($AC$66/4096,0),1)>=1, 1, 0)","v":0},{"$f":"IF(_xlfn.BITAND(ROUNDDOWN($AC$66/8192,0),1)>=1, 1, 0)","v":0},{"$f":"IF(_xlfn.BITAND(ROUNDDOWN($AC$66/16384,0),1)>=1, 1, 0)","v":0},{"$f":"IF(_xlfn.BITAND(ROUNDDOWN($AC$66/32768,0),1)>=1, 1, 0)","v":0},{"$f":"IF(_xlfn.BITAND(ROUNDDOWN($AC$66/65536,0),1)>=1, 1, 0)","v":0},{"$f":"IF(_xlfn.BITAND(ROUNDDOWN($AC$66/131072,0),1)>=1, 1, 0)","v":0},{"$f":"IF(_xlfn.BITAND(ROUNDDOWN($AC$66/262144,0),1)>=1, 1, 0)","v":0},{"$f":"IF(_xlfn.BITAND(ROUNDDOWN($AC$66/524288,0),1)>=1, 1, 0)","v":0}]